[Event "*** Qualifier 4: Titled Tuesday 3|2 Blitz"]
[Site "Chess.com"]
[Date "2017.04.25"]
[Round "9"]
[White "ChristopherYoo"]
[Black "wnstop"]
[Result "0-1"]
[WhiteElo "2293"]
[BlackElo "2465"]
[TimeControl "180+2"]
[EndTime "14:57:28 PDT"]
[Termination "wnstop won on time"]

1. e4 {[%clk 0:03:02]} 1... c5 {[%clk 0:03:00.1]} 2. Nf3 {[%clk 0:03:02.6]} 2...
Nc6 {[%clk 0:03:01.2]} 3. d4 {[%clk 0:03:03.2]} 3... cxd4 {[%clk 0:03:03.1]} 4.
Nxd4 {[%clk 0:03:04.3]} 4... e5 {[%clk 0:03:04.7]} 5. Nb5 {[%clk 0:03:04.8]}
5... d6 {[%clk 0:03:06.2]} 6. N1c3 {[%clk 0:03:05.7]} 6... a6 {[%clk 0:03:07.4]}
7. Na3 {[%clk 0:03:06.8]} 7... Be7 {[%clk 0:03:08.8]} 8. Nd5 {[%clk 0:03:05.1]}
8... Nf6 {[%clk 0:03:07.6]} 9. Nxf6+ {[%clk 0:02:56.2]} 9... Bxf6 {[%clk
0:03:09.5]} 10. c4 {[%clk 0:02:54.3]} 10... O-O {[%clk 0:03:09.5]} 11. Be3
{[%clk 0:02:47.2]} 11... Bg5 {[%clk 0:03:10.2]} 12. Qd2 {[%clk 0:02:36.2]} 12...
Bxe3 {[%clk 0:03:10.6]} 13. Qxe3 {[%clk 0:02:36.8]} 13... f5 {[%clk 0:03:01]}
14. Bd3 {[%clk 0:02:19.1]} 14... f4 {[%clk 0:02:59.1]} 15. Qd2 {[%clk
0:02:19.7]} 15... Qh4 {[%clk 0:02:44]} 16. O-O-O {[%clk 0:02:17.4]} 16... Be6
{[%clk 0:02:39]} 17. Nc2 {[%clk 0:02:11.5]} 17... Qe7 {[%clk 0:02:31.4]} 18. b3
{[%clk 0:02:08.3]} 18... Qc7 {[%clk 0:02:08.4]} 19. Qc3 {[%clk 0:01:54.9]} 19...
Na5 {[%clk 0:01:53.8]} 20. Rd2 {[%clk 0:01:47.2]} 20... b5 {[%clk 0:01:53.4]}
21. Na3 {[%clk 0:01:35.6]} 21... Rab8 {[%clk 0:01:38.5]} 22. Qc2 {[%clk
0:01:11.8]} 22... Qc5 {[%clk 0:01:34.4]} 23. Nb1 {[%clk 0:01:00.5]} 23... bxc4
{[%clk 0:01:34.7]} 24. bxc4 {[%clk 0:01:01.3]} 24... Rb4 {[%clk 0:01:24.5]} 25.
Na3 {[%clk 0:00:40.2]} 25... Rfb8 {[%clk 0:01:20.5]} 26. Kd1 {[%clk 0:00:35.3]}
26... Nc6 {[%clk 0:01:09.9]} 27. Qc1 {[%clk 0:00:28.1]} 27... Bg4+ {[%clk
0:01:04.2]} 28. f3 {[%clk 0:00:26.2]} 28... Be6 {[%clk 0:01:00.6]} 29. Ke2
{[%clk 0:00:24.6]} 29... Qe3+ {[%clk 0:01:01.1]} 30. Kf1 {[%clk 0:00:22.3]}
30... Rb2 {[%clk 0:00:59]} 31. Nc2 {[%clk 0:00:18.7]} 31... Rb1 {[%clk
0:00:57.1]} 32. Nxe3 {[%clk 0:00:18.9]} 32... Rxc1+ {[%clk 0:00:56.1]} 33. Nd1
{[%clk 0:00:15.8]} 33... Nd4 {[%clk 0:00:42.7]} 34. Kf2 {[%clk 0:00:16.1]} 34...
Bxc4 {[%clk 0:00:42.6]} 35. Bxc4+ {[%clk 0:00:16.2]} 35... Rxc4 {[%clk
0:00:44.5]} 36. Nb2 {[%clk 0:00:15.2]} 36... Rc3 {[%clk 0:00:37]} 37. Rhd1
{[%clk 0:00:13.7]} 37... Kf7 {[%clk 0:00:34.7]} 38. Nd3 {[%clk 0:00:12.3]} 38...
g5 {[%clk 0:00:35.2]} 39. h4 {[%clk 0:00:11.8]} 39... h6 {[%clk 0:00:31.1]} 40.
hxg5 {[%clk 0:00:12.2]} 40... hxg5 {[%clk 0:00:31.9]} 41. Rh1 {[%clk 0:00:11.9]}
41... Kg6 {[%clk 0:00:31.7]} 42. Nb2 {[%clk 0:00:10.5]} 42... Rbc8 {[%clk
0:00:28.7]} 43. Rhd1 {[%clk 0:00:09.3]} 43... Rc2 {[%clk 0:00:29.3]} 44. Na4
{[%clk 0:00:08.7]} 44... R8c6 {[%clk 0:00:25.1]} 45. Kg1 {[%clk 0:00:07.7]}
45... g4 {[%clk 0:00:22.6]} 46. fxg4 {[%clk 0:00:07.4]} 46... Kg5 {[%clk
0:00:22.4]} 47. Nb2 {[%clk 0:00:06.7]} 47... Kxg4 {[%clk 0:00:18.5]} 48. Nd3
{[%clk 0:00:07]} 48... Kg3 {[%clk 0:00:17.7]} 0-1

[Event "*** Qualifier 4: Titled Tuesday 3|2 Blitz"]
[Site "Chess.com"]
[Date "2017.04.25"]
[Round "9"]
[White "djogrodek1"]
[Black "WeiYi1999"]
[Result "1-0"]
[WhiteElo "2366"]
[BlackElo "2081"]
[TimeControl "180+2"]
[EndTime "14:58:07 PDT"]
[Termination "djogrodek1 won by checkmate"]

1. c4 {[%clk 0:03:02]} 1... e5 {[%clk 0:02:59.1]} 2. g3 {[%clk 0:03:01.4]} 2...
Nf6 {[%clk 0:03:00.3]} 3. Bg2 {[%clk 0:03:02.8]} 3... d5 {[%clk 0:03:01.2]} 4.
cxd5 {[%clk 0:03:04.7]} 4... Nxd5 {[%clk 0:03:02.5]} 5. Nc3 {[%clk 0:03:06.6]}
5... Nb6 {[%clk 0:03:02.9]} 6. e3 {[%clk 0:03:08.2]} 6... Nc6 {[%clk 0:02:19.6]}
7. Nge2 {[%clk 0:03:06.4]} 7... Bf5 {[%clk 0:02:18.8]} 8. O-O {[%clk 0:02:59.2]}
8... Qd3 {[%clk 0:02:20]} 9. f4 {[%clk 0:03:00.3]} 9... e4 {[%clk 0:02:17.9]}
10. h3 {[%clk 0:02:59.5]} 10... h5 {[%clk 0:01:54.7]} 11. b3 {[%clk 0:03:00.7]}
11... f6 {[%clk 0:01:51.6]} 12. Qe1 {[%clk 0:02:57.9]} 12... Bb4 {[%clk
0:01:43.2]} 13. g4 {[%clk 0:02:48.5]} 13... hxg4 {[%clk 0:01:42]} 14. hxg4
{[%clk 0:02:50.4]} 14... Bxg4 {[%clk 0:01:43.9]} 15. Bxe4 {[%clk 0:02:51.3]}
15... Qd7 {[%clk 0:01:35.9]} 16. Bg6+ {[%clk 0:02:49.4]} 16... Kd8 {[%clk
0:01:35.7]} 17. Rf2 {[%clk 0:02:41.3]} 17... Rh6 {[%clk 0:01:31.4]} 18. Be4
{[%clk 0:02:40.7]} 18... f5 {[%clk 0:01:28.3]} 19. Bh1 {[%clk 0:02:35]} 19...
Qf7 {[%clk 0:01:23.3]} 20. Ng3 {[%clk 0:02:27.5]} 20... Rh3 {[%clk 0:01:19.2]}
21. Rh2 {[%clk 0:02:26.1]} 21... g5 {[%clk 0:01:14]} 22. Rxh3 {[%clk 0:02:20.7]}
22... Bxh3 {[%clk 0:01:15.9]} 23. fxg5 {[%clk 0:02:22.5]} 23... Qg8 {[%clk
0:01:09.3]} 24. Bb2 {[%clk 0:02:03.3]} 24... Qxg5 {[%clk 0:01:07.7]} 25. Ne2
{[%clk 0:02:04.8]} 25... Bd6 {[%clk 0:01:03.3]} 26. Qf2 {[%clk 0:01:49.2]} 26...
Nb4 {[%clk 0:00:59.7]} 27. Nf4 {[%clk 0:01:41]} 27... Qh4 {[%clk 0:00:55]} 28.
Nge2 {[%clk 0:01:04.5]} 28... Qg4+ {[%clk 0:00:36.5]} 29. Qg3 {[%clk 0:01:04.6]}
29... Bxf4 {[%clk 0:00:32.7]} 30. Qxg4 {[%clk 0:01:04.8]} 30... Bxe3+ {[%clk
0:00:33.2]} 31. dxe3 {[%clk 0:01:06.7]} 31... Bxg4 {[%clk 0:00:33.1]} 32. Nf4
{[%clk 0:01:07.6]} 32... c6 {[%clk 0:00:28.3]} 33. Kf2 {[%clk 0:01:07.5]} 33...
Kc7 {[%clk 0:00:18.2]} 34. Be5+ {[%clk 0:01:06.2]} 34... Kd7 {[%clk 0:00:19]}
35. Bg2 {[%clk 0:01:04.2]} 35... Re8 {[%clk 0:00:17.3]} 36. Bc3 {[%clk
0:01:02.3]} 36... N4d5 {[%clk 0:00:18]} 37. Nxd5 {[%clk 0:01:02.8]} 37... Nxd5
{[%clk 0:00:17.2]} 38. Bd4 {[%clk 0:01:04.2]} 38... Nb4 {[%clk 0:00:08.5]} 39.
Rh1 {[%clk 0:01:03.6]} 39... Nd3+ {[%clk 0:00:08.2]} 40. Kg3 {[%clk 0:01:03]}
40... c5 {[%clk 0:00:07.6]} 41. Bf6 {[%clk 0:01:01.7]} 41... b5 {[%clk
0:00:06.3]} 42. Rh7+ {[%clk 0:01:02]} 42... Kc8 {[%clk 0:00:04.5]} 43. Bb7+
{[%clk 0:00:57.3]} 43... Kb8 {[%clk 0:00:04.8]} 44. Bg5 {[%clk 0:00:59.2]} 44...
Ne5 {[%clk 0:00:05.4]} 45. Bf4 {[%clk 0:00:59.1]} 45... c4 {[%clk 0:00:05.9]}
46. bxc4 {[%clk 0:00:56.7]} 46... bxc4 {[%clk 0:00:07.8]} 47. Bc6 {[%clk
0:00:54.3]} 47... Re6 {[%clk 0:00:05.7]} 48. Bd5 {[%clk 0:00:55.4]} 48... Re8
{[%clk 0:00:06.1]} 49. Rh8 {[%clk 0:00:57]} 49... Rxh8 {[%clk 0:00:06.8]} 50.
Bxe5+ {[%clk 0:00:57.3]} 50... Kc8 {[%clk 0:00:07.7]} 51. Bxh8 {[%clk
0:00:59.2]} 51... c3 {[%clk 0:00:09.4]} 52. Bxc3 {[%clk 0:00:59.4]} 52... Bd1
{[%clk 0:00:10.3]} 53. Kf4 {[%clk 0:00:59.2]} 53... Bc2 {[%clk 0:00:11]} 54.
Be6+ {[%clk 0:01:00.2]} 54... Kd8 {[%clk 0:00:11.6]} 55. Bxf5 {[%clk 0:01:02.1]}
55... Bd1 {[%clk 0:00:12.4]} 56. e4 {[%clk 0:01:03.2]} 56... Kc7 {[%clk
0:00:11.3]} 57. Ba5+ {[%clk 0:01:04.2]} 57... Kb7 {[%clk 0:00:11.7]} 58. e5
{[%clk 0:01:06.1]} 58... Ka6 {[%clk 0:00:11.9]} 59. Bd2 {[%clk 0:01:07.5]} 59...
Kb6 {[%clk 0:00:12]} 60. e6 {[%clk 0:01:08.4]} 60... Kc7 {[%clk 0:00:12.4]} 61.
e7 {[%clk 0:01:10.3]} 61... Ba4 {[%clk 0:00:13.1]} 62. Ba5+ {[%clk 0:01:10.9]}
62... Kd6 {[%clk 0:00:12.9]} 63. Bb4+ {[%clk 0:01:12.4]} 63... Kc7 {[%clk
0:00:12.8]} 64. Bg6 {[%clk 0:01:13.9]} 64... a6 {[%clk 0:00:12.9]} 65. e8=Q
{[%clk 0:01:14.8]} 65... Bxe8 {[%clk 0:00:14.4]} 66. Bxe8 {[%clk 0:01:16.7]}
66... Kb6 {[%clk 0:00:15.8]} 67. a4 {[%clk 0:01:17.7]} 67... a5 {[%clk
0:00:17.7]} 68. Ba3 {[%clk 0:01:18.6]} 68... Ka6 {[%clk 0:00:18.6]} 69. Ke5
{[%clk 0:01:20.5]} 69... Kb6 {[%clk 0:00:20.5]} 70. Bb5 {[%clk 0:01:22.3]} 70...
Ka7 {[%clk 0:00:21.4]} 71. Kd6 {[%clk 0:01:24.2]} 71... Kb6 {[%clk 0:00:23.3]}
72. Bc5+ {[%clk 0:01:24.3]} 72... Kb7 {[%clk 0:00:24.4]} 73. Kd7 {[%clk
0:01:18.8]} 73... Ka8 {[%clk 0:00:26.3]} 74. Be7 {[%clk 0:01:18.2]} 74... Ka7
{[%clk 0:00:28.2]} 75. Kc7 {[%clk 0:01:19.3]} 75... Ka8 {[%clk 0:00:30.1]} 76.
Bc6+ {[%clk 0:01:20.1]} 76... Ka7 {[%clk 0:00:31.9]} 77. Bc5+ {[%clk 0:01:21.7]}
77... Ka6 {[%clk 0:00:33.8]} 78. Bb7# {[%clk 0:01:23.5]} 1-0

[Event "*** Qualifier 4: Titled Tuesday 3|2 Blitz"]
[Site "Chess.com"]
[Date "2017.04.25"]
[Round "9"]
[White "MorpheusPro"]
[Black "chesstatour"]
[Result "0-1"]
[WhiteElo "2021"]
[BlackElo "1914"]
[TimeControl "180+2"]
[EndTime "14:58:14 PDT"]
[Termination "chesstatour won by checkmate"]

1. e4 {[%clk 0:02:58.2]} 1... c6 {[%clk 0:03:00.5]} 2. d4 {[%clk 0:02:58.6]}
2... d5 {[%clk 0:03:02.4]} 3. Nc3 {[%clk 0:02:59.2]} 3... dxe4 {[%clk
0:03:02.9]} 4. Nxe4 {[%clk 0:03:00.6]} 4... Nf6 {[%clk 0:03:03.9]} 5. Ng3 {[%clk
0:03:00.2]} 5... h5 {[%clk 0:03:04.3]} 6. Nf3 {[%clk 0:02:58.1]} 6... h4 {[%clk
0:03:06.2]} 7. Ne2 {[%clk 0:02:58.1]} 7... h3 {[%clk 0:03:08.1]} 8. gxh3 {[%clk
0:02:54.4]} 8... Bxh3 {[%clk 0:03:08.7]} 9. Bxh3 {[%clk 0:02:54.3]} 9... Rxh3
{[%clk 0:03:08.7]} 10. Ng3 {[%clk 0:02:48.8]} 10... e6 {[%clk 0:02:58.9]} 11.
Qe2 {[%clk 0:02:39.7]} 11... Bd6 {[%clk 0:02:27.1]} 12. Nf5 {[%clk 0:02:30.7]}
12... Qa5+ {[%clk 0:02:24.2]} 13. Bd2 {[%clk 0:02:19.8]} 13... Qxf5 {[%clk
0:02:24.4]} 14. Ng5 {[%clk 0:02:13.7]} 14... Rh4 {[%clk 0:01:38.5]} 15. O-O-O
{[%clk 0:01:59.7]} 15... Bf4 {[%clk 0:01:19.4]} 16. Nf3 {[%clk 0:01:55.5]} 16...
Rh3 {[%clk 0:01:13.4]} 17. Kb1 {[%clk 0:01:41.9]} 17... Bxd2 {[%clk 0:01:09.6]}
18. Nxd2 {[%clk 0:01:42.3]} 18... Nbd7 {[%clk 0:01:10.2]} 19. Nc4 {[%clk
0:01:35.4]} 19... Qd5 {[%clk 0:00:57.2]} 20. Rhg1 {[%clk 0:01:28.4]} 20... g6
{[%clk 0:00:52]} 21. Ne3 {[%clk 0:01:17]} 21... Qe4 {[%clk 0:00:50.6]} 22. Qd2
{[%clk 0:01:06.8]} 22... O-O-O {[%clk 0:00:49.7]} 23. Nc4 {[%clk 0:01:02.3]}
23... Nb6 {[%clk 0:00:45.7]} 24. Ne5 {[%clk 0:01:01.9]} 24... Rh7 {[%clk
0:00:30.3]} 25. f3 {[%clk 0:00:57.5]} 25... Qd5 {[%clk 0:00:20]} 26. Rg5 {[%clk
0:00:40.8]} 26... Nc4 {[%clk 0:00:15.1]} 27. Qe1 {[%clk 0:00:29.4]} 27... Nxe5
{[%clk 0:00:13.2]} 28. Rxe5 {[%clk 0:00:28.3]} 28... Qxf3 {[%clk 0:00:10.6]} 29.
a3 {[%clk 0:00:21.6]} 29... Nd5 {[%clk 0:00:11.5]} 30. Rc1 {[%clk 0:00:18]}
30... Rxh2 {[%clk 0:00:11.3]} 31. Qa5 {[%clk 0:00:17.7]} 31... Kb8 {[%clk
0:00:11.4]} 32. Ree1 {[%clk 0:00:17.4]} 32... b6 {[%clk 0:00:08]} 33. Qa6 {[%clk
0:00:17.6]} 33... Nc7 {[%clk 0:00:07.9]} 34. Qc4 {[%clk 0:00:17.4]} 34... Qd5
{[%clk 0:00:08.8]} 35. Qc3 {[%clk 0:00:17.6]} 35... Qxd4 {[%clk 0:00:08.4]} 36.
Qg3 {[%clk 0:00:15.8]} 36... Rh7 {[%clk 0:00:06.6]} 37. Red1 {[%clk 0:00:14.9]}
37... Qxd1 {[%clk 0:00:07.3]} 38. Rxd1 {[%clk 0:00:15.6]} 38... Rxd1+ {[%clk
0:00:08.3]} 39. Ka2 {[%clk 0:00:17.5]} 39... Rd7 {[%clk 0:00:07.9]} 40. Qf3
{[%clk 0:00:17.8]} 40... f5 {[%clk 0:00:07.6]} 41. Qxc6 {[%clk 0:00:17.6]} 41...
Rhe7 {[%clk 0:00:09]} 42. a4 {[%clk 0:00:17.3]} 42... e5 {[%clk 0:00:06.6]} 43.
Qxg6 {[%clk 0:00:16.9]} 43... f4 {[%clk 0:00:06.7]} 44. Qg4 {[%clk 0:00:14.9]}
44... Rf7 {[%clk 0:00:06.8]} 45. Qf3 {[%clk 0:00:13.7]} 45... Rd4 {[%clk
0:00:05.3]} 46. b3 {[%clk 0:00:14.2]} 46... e4 {[%clk 0:00:06.2]} 47. Qf1 {[%clk
0:00:11.5]} 47... f3 {[%clk 0:00:04.9]} 48. Qf2 {[%clk 0:00:09]} 48... Rfd7
{[%clk 0:00:03.4]} 49. Qg3 {[%clk 0:00:05.9]} 49... Rd2 {[%clk 0:00:03.8]} 50.
Qg8+ {[%clk 0:00:06.2]} 50... Kb7 {[%clk 0:00:03.9]} 51. Qf7 {[%clk 0:00:06.1]}
51... Rxf7 {[%clk 0:00:03.6]} 52. Kb2 {[%clk 0:00:06.8]} 52... Rxc2+ {[%clk
0:00:04.3]} 53. Kxc2 {[%clk 0:00:08]} 53... e3 {[%clk 0:00:06.2]} 54. Kd3 {[%clk
0:00:09.2]} 54... f2 {[%clk 0:00:07.7]} 55. Kxe3 {[%clk 0:00:10.6]} 55... f1=Q
{[%clk 0:00:08.3]} 56. Ke4 {[%clk 0:00:12.5]} 56... Qf3+ {[%clk 0:00:08.9]} 57.
Ke5 {[%clk 0:00:13.4]} 57... Qf4# {[%clk 0:00:09]} 0-1

[Event "*** Qualifier 4: Titled Tuesday 3|2 Blitz"]
[Site "Chess.com"]
[Date "2017.04.25"]
[Round "9"]
[White "kreonx"]
[Black "AllStarShark"]
[Result "1/2-1/2"]
[WhiteElo "2232"]
[BlackElo "2307"]
[TimeControl "180+2"]
[EndTime "14:59:12 PDT"]
[Termination "Game drawn by stalemate"]

1. e4 {[%clk 0:02:18.7]} 1... e5 {[%clk 0:02:59.8]} 2. Nf3 {[%clk 0:02:18.9]}
2... Nc6 {[%clk 0:02:59.2]} 3. d4 {[%clk 0:02:20.3]} 3... exd4 {[%clk
0:02:58.2]} 4. Nxd4 {[%clk 0:02:19]} 4... Nf6 {[%clk 0:02:58.2]} 5. Nxc6 {[%clk
0:02:13]} 5... bxc6 {[%clk 0:02:56.9]} 6. e5 {[%clk 0:02:14.5]} 6... Qe7 {[%clk
0:02:53.4]} 7. Qe2 {[%clk 0:02:15.7]} 7... Nd5 {[%clk 0:02:52.1]} 8. c4 {[%clk
0:02:17.2]} 8... Nb6 {[%clk 0:02:51.9]} 9. b3 {[%clk 0:02:06.7]} 9... Qe6 {[%clk
0:02:32.9]} 10. Bb2 {[%clk 0:02:06.3]} 10... Bb4+ {[%clk 0:02:28.6]} 11. Nd2
{[%clk 0:02:04.2]} 11... O-O {[%clk 0:02:27.5]} 12. a3 {[%clk 0:02:03.7]} 12...
Bxd2+ {[%clk 0:02:22.3]} 13. Qxd2 {[%clk 0:02:04.2]} 13... f6 {[%clk 0:02:16.7]}
14. g3 {[%clk 0:01:48.7]} 14... fxe5 {[%clk 0:02:16.2]} 15. Bg2 {[%clk
0:01:50.3]} 15... d5 {[%clk 0:02:04.7]} 16. cxd5 {[%clk 0:01:43.5]} 16... cxd5
{[%clk 0:02:02.3]} 17. Rc1 {[%clk 0:01:37.3]} 17... c6 {[%clk 0:01:50.2]} 18.
O-O {[%clk 0:01:35.6]} 18... Bb7 {[%clk 0:01:43.8]} 19. a4 {[%clk 0:01:35.8]}
19... Nd7 {[%clk 0:01:40.1]} 20. a5 {[%clk 0:01:34.5]} 20... a6 {[%clk
0:01:38.9]} 21. Rfe1 {[%clk 0:01:25.9]} 21... Qf5 {[%clk 0:01:26.7]} 22. Re2
{[%clk 0:01:17.9]} 22... Rae8 {[%clk 0:01:25.6]} 23. Rce1 {[%clk 0:01:09.4]}
23... e4 {[%clk 0:01:24.7]} 24. Qb4 {[%clk 0:01:04.1]} 24... Bc8 {[%clk
0:01:13.6]} 25. Qc3 {[%clk 0:01:03.1]} 25... Qf6 {[%clk 0:01:04.5]} 26. Qc2
{[%clk 0:00:46.8]} 26... Qg6 {[%clk 0:01:03.3]} 27. b4 {[%clk 0:00:43.1]} 27...
Ne5 {[%clk 0:01:02.6]} 28. Bxe5 {[%clk 0:00:42.5]} 28... Rxe5 {[%clk 0:01:04.5]}
29. Qc3 {[%clk 0:00:25.8]} 29... Re7 {[%clk 0:00:54]} 30. Qc5 {[%clk 0:00:24.9]}
30... Ref7 {[%clk 0:00:51.9]} 31. Rf1 {[%clk 0:00:22.1]} 31... Bg4 {[%clk
0:00:44.7]} 32. Re3 {[%clk 0:00:20.5]} 32... Bf3 {[%clk 0:00:43.7]} 33. Qb6
{[%clk 0:00:20.7]} 33... Bxg2 {[%clk 0:00:44.3]} 34. Kxg2 {[%clk 0:00:22]} 34...
Rf3 {[%clk 0:00:36.1]} 35. Qxa6 {[%clk 0:00:20.3]} 35... Rxe3 {[%clk 0:00:36.7]}
36. fxe3 {[%clk 0:00:21.4]} 36... Rxf1 {[%clk 0:00:34.7]} 37. Qxf1 {[%clk
0:00:21.3]} 37... d4 {[%clk 0:00:25.3]} 38. exd4 {[%clk 0:00:20.6]} 38... e3
{[%clk 0:00:26.1]} 39. a6 {[%clk 0:00:18.8]} 39... Qe4+ {[%clk 0:00:25.6]} 40.
Qf3 {[%clk 0:00:17.2]} 40... Qc2+ {[%clk 0:00:26]} 41. Kh3 {[%clk 0:00:16.9]}
41... g5 {[%clk 0:00:14.9]} 42. a7 {[%clk 0:00:15.6]} 42... Qa2 {[%clk 0:00:14]}
43. Qxe3 {[%clk 0:00:10.3]} 43... Qxa7 {[%clk 0:00:14.9]} 44. Qe8+ {[%clk
0:00:10.9]} 44... Kg7 {[%clk 0:00:16.1]} 45. Qe5+ {[%clk 0:00:10.8]} 45... Kg6
{[%clk 0:00:16.5]} 46. Qe6+ {[%clk 0:00:11.9]} 46... Kg7 {[%clk 0:00:17.7]} 47.
Qxc6 {[%clk 0:00:12.4]} 47... Qxd4 {[%clk 0:00:17.8]} 48. Qc5 {[%clk 0:00:13.6]}
48... g4+ {[%clk 0:00:13.2]} 49. Kh4 {[%clk 0:00:12]} 49... Qb2 {[%clk
0:00:13.9]} 50. Kxg4 {[%clk 0:00:09.6]} 50... Qxh2 {[%clk 0:00:14.1]} 51. Qd4+
{[%clk 0:00:10.5]} 51... Kg6 {[%clk 0:00:14.2]} 52. Qd6+ {[%clk 0:00:10.5]}
52... Kg7 {[%clk 0:00:15.1]} 53. Qd7+ {[%clk 0:00:11.2]} 53... Kg6 {[%clk
0:00:16.5]} 54. Qf5+ {[%clk 0:00:09.5]} 54... Kg7 {[%clk 0:00:17.2]} 55. Qg5+
{[%clk 0:00:10.7]} 55... Kf8 {[%clk 0:00:16]} 56. Qd8+ {[%clk 0:00:11.1]} 56...
Kg7 {[%clk 0:00:15.7]} 57. Qg5+ {[%clk 0:00:11.4]} 57... Kf8 {[%clk 0:00:16.4]}
58. Qh5 {[%clk 0:00:11]} 58... Qe2+ {[%clk 0:00:16.5]} 59. Kg5 {[%clk
0:00:11.9]} 59... Qe5+ {[%clk 0:00:16.8]} 60. Kh4 {[%clk 0:00:09.5]} 60... Qe7+
{[%clk 0:00:16.7]} 61. Kh3 {[%clk 0:00:07.6]} 61... Qxb4 {[%clk 0:00:17.5]} 62.
Qxh7 {[%clk 0:00:08.7]} 62... Qe1 {[%clk 0:00:15.7]} 63. Qh6+ {[%clk 0:00:08.2]}
63... Kg8 {[%clk 0:00:16.7]} 64. Qg6+ {[%clk 0:00:09.1]} 64... Kh8 {[%clk
0:00:17.6]} 65. g4 {[%clk 0:00:09]} 65... Qf1+ {[%clk 0:00:17]} 66. Kh4 {[%clk
0:00:10]} 66... Qh1+ {[%clk 0:00:17.6]} 67. Kg5 {[%clk 0:00:10.7]} 67... Qc1+
{[%clk 0:00:19.2]} 68. Kh5 {[%clk 0:00:09.4]} 68... Qh1+ {[%clk 0:00:19.6]} 69.
Kg5 {[%clk 0:00:10.1]} 69... Qc1+ {[%clk 0:00:20]} 70. Kf6 {[%clk 0:00:10.9]}
70... Qc6+ {[%clk 0:00:19.9]} 71. Kf5 {[%clk 0:00:12.2]} 71... Qc2+ {[%clk
0:00:20.1]} 72. Kg5 {[%clk 0:00:13.4]} 72... Qd2+ {[%clk 0:00:21.3]} 73. Kh4
{[%clk 0:00:13.3]} 73... Qh2+ {[%clk 0:00:21.2]} 74. Kg5 {[%clk 0:00:14.4]}
74... Qd2+ {[%clk 0:00:22.3]} 75. Kf5 {[%clk 0:00:13.4]} 75... Qd3+ {[%clk
0:00:20.9]} 76. Kf6 {[%clk 0:00:14.3]} 76... Qd6+ {[%clk 0:00:21.4]} 77. Kf7
{[%clk 0:00:14.6]} 77... Qe7+ {[%clk 0:00:21.6]} 78. Kxe7 {[%clk 0:00:15.1]}
1/2-1/2